[Event "FIDE Zonal 4-2 Open 2023"]
[Site "Dimbroko"]
[Date "2023.03.30"]
[Round "7.3"]
[White "Daniel Kolliemelen"]
[Black "Thomas, Saah"]
[Result "1-0"]
[ECO "B22"]
[WhiteElo "1805"]
[BlackElo "1916"]
[Annotator "TA"]
[PlyCount "145"]
[EventDate "2023.03.25"]
[EventType "swiss"]
[EventCountry "IVO"]
[SourceTitle "playchess.com"]
[Source "ChessBase"]
[SourceQuality "1"]
[TimeControl "40/5400+30:1800+30"]

{[%evp 9,145,6,35,19,45,39,52,56,58,59,88,83,81,69,127,88,116,67,147,141,196,143,131,100,146,111,120,14,64,14,91,0,209,97,260,202,431,324,399,273,416,172,520,190,490,468,439,486,1188,1168,1086,989,1029,616,612,593,1059,816,812,782,851,0,1375,1316,1384,1375,1366,1334,1594,1042,1042,1042,1042,1042,1020,1009,1166,1160,1506,1154,1112,1135,1092,1054,2102,1763,2214,2256,1973,1963,5101,5161,4889,3137,5926,8435,29977,29978,29971,29977,29985,29986,29987,29988,29988,29986,29989,29988,29988,29989,29989,29987,29987,29988,29988,29987,29990,29989,29991,29990,29990,29989,29989,29990,29990,29991,29991,29992,29997,29993,29993,29993,29993,29994,29994,29994,29994,29995]} 1. d4 {[%emt 0:00:25]} c5 {[%emt 0:00:18]} 2. c3 {[%emt 0:00:38]} e6 {[%emt 0:00:39]} 3. e4 {[%emt 0:02:18]} b6 {[%emt 0:00:32]} 4. Be3 {[%emt 0:02:35]} Bb7 {[%emt 0:00:17]} 5. Nd2 {[%emt 0:00:43]} Nf6 {[%emt 0:00:24]} 6. f3 {[%emt 0:00:58] B22: Sicilian: 2 c3.} cxd4 {[%emt 0:00:22]} 7. cxd4 {[%emt 0:01:20]} Bb4 {[%emt 0:01:43]} 8. Bd3 {[%emt 0:00:27] White is slightly better.} Nc6 {[%emt 0:01:18]} 9. Ne2 {[%emt 0:00:38] [#]} d5 $146 {[%emt 0:00:07]} ({Predecessor:} 9... Rc8 10. a3 Be7 11. O-O O-O 12. Nc3 d5 13. e5 Nd7 14. f4 f6 15. Qh5 f5 16. Nxd5 {1-0 Lux,W (1996)-Maurer,R (1847) Regionalliga SW 1415 2014 (1.6)}) 10. e5 {[%emt 0:01:12]} Nd7 {[%emt 0:00:07]} 11. O-O {[%emt 0:00:26]} f5 {[%emt 0:00:45]} ({Black should try} 11... Be7 $14) 12. f4 {[%emt 0:01:08]} h6 {[%emt 0:00:29]} 13. Ng3 {[%emt 0:02:09]} (13. g4 $16) 13... h5 {[%emt 0:00:02]} 14. Nf3 {[%emt 0:01:31] Ng5 is the strong threat.} ({Stronger than} 14. Nxh5 Bxd2 15. Nxg7+ (15. Bxd2 Qh4 $15) 15... Kf7 16. Qxd2 Kxg7 $17) 14... h4 {[%emt 0:00:26]} (14... g6 $16) 15. Ne2 {[%emt 0:00:13]} (15. Nxf5 $18 exf5 16. Bxf5) 15... Be7 {[%emt 0:00:20]} 16. a3 {[%emt 0:00:15]} a6 {[%emt 0:00:38]} (16... Na5 $142) 17. b4 {[%emt 0:02:03]} b5 {[%emt 0:00:14]} 18. Nd2 {[%emt 0:01:24]} (18. Ng5 $16 Bxg5 19. fxg5) 18... h3 {[%emt 0:00:59]} (18... Nb6 $11) 19. g3 {[%emt 0:00:12]} (19. g4 $1 $14 g6 20. Nb3) 19... Qb6 {[%emt 0:01:34]} (19... Nb6 $11 {keeps the balance.}) 20. Bf2 {[%emt 0:00:38]} (20. Nb3 $16) 20... g5 $2 {[%emt 0:00:03] White now steadily converts the win.} (20... a5 $11) 21. Nb3 {[%emt 0:01:14]} (21. g4 $18) 21... Kf7 $2 {[%emt 0:00:28]} (21... g4 $16) 22. Nc5 {[%emt 0:00:12]} Nf8 {[%emt 0:01:04]} (22... Nxc5 {might work better.} 23. bxc5 Qd8) 23. Qc2 {[%emt 0:00:13]} Bc8 {[%emt 0:00:19]} 24. Rac1 {[%emt 0:00:38][%cal Og3g4] And now g4! would win.} Nd8 {[%emt 0:00:31]} (24... Bxc5 $142 25. Qxc5 (25. dxc5 Qc7 $18) 25... Qxc5 26. Rxc5 Bd7 27. fxg5 Rc8) 25. Be3 {[%emt 0:00:20]} (25. g4 $142) 25... Nh7 $2 {[%emt 0:02:29]} (25... g4 {is a better chance.} 26. a4 bxa4 27. Qxa4 Bb7) 26. Qd2 $2 {[%emt 0:00:59]} (26. g4) 26... Rg8 $2 {[%emt 0:00:23]} (26... g4 27. a4 bxa4) 27. fxg5 $18 {[%emt 0:01:42]} Nxg5 {[%emt 0:00:07]} 28. Nf4 {[%emt 0:00:43]} Ne4 {[%emt 0:01:12]} (28... Kf8 $142 29. Qe2 Ngf7 30. Nxh3 Nb7) 29. Bxe4 {[%emt 0:00:51]} dxe4 {[%emt 0:00:11] [#]} 30. Nxe4 $1 {[%emt 0:01:10][%mdl 512] Excellent horsemanship.} Qb7 {[%emt 0:01:11]} (30... Rg4 31. d5) 31. Nc5 {[%emt 0:00:18]} Bxc5 {[%emt 0:00:54]} 32. Rxc5 {[%emt 0:03:03][%cal Of1c1] Rfc1! would be deadly.} Nc6 {[%emt 0:01:59] Black is weak on the dark squares} 33. Nxh3 {[%emt 0:00:15]} Ne7 {[%emt 0:00:32]} 34. Ng5+ {[%emt 0:00:22]} Kg6 {[%emt 0:00:20]} 35. Nh3 $2 {[%emt 0:00:31]} (35. g4 $18) 35... Qe4 $2 {[%emt 0:01:22][%mdl 8192]} (35... Kf7 $11 36. Bg5 Nd5) 36. Rf4 {[%emt 0:00:43]} Qb1+ {[%emt 0:00:04]} 37. Rc1 {[%emt 0:00:51]} Qb3 {[%emt 0:00:04]} 38. Rh4 {[%emt 0:00:21] Threatens to win with Bg5.} Bb7 {[%emt 0:00:36]} 39. Nf4+ {[%emt 0:00:30]} Kf7 {[%emt 0:00:07]} 40. Rh7+ {[%emt 0:00:29]} Rg7 {[%emt 0:01:33]} 41. Rxg7+ {[%emt 0:31:24]} Kxg7 {[%emt 0:30:01]} 42. Rc7 {[%emt 0:00:18][%csl LRb7,LRe7]} Qb1+ {[%emt 0:00:25]} 43. Qc1 {[%emt 0:01:12]} Qe4 {[%emt 0:00:28]} 44. Rxe7+ {[%emt 0:03:07]} Kg8 {[%emt 0:00:01] [#]} 45. Rxb7 $1 {[%emt 0:01:44]} Qxb7 {[%emt 0:00:04]} 46. Nxe6 {[%emt 0:01:32]} Qf3 {[%emt 0:00:24]} 47. Bf2 {[%emt 0:01:47] Threatening mate with Qg5+.} Qh5 {[%emt 0:01:51]} 48. Qg5+ {[%emt 0:01:46]} Qxg5 {[%emt 0:00:01]} 49. Nxg5 {[%emt 1:05:32]} Kg7 {[%emt 1:25:02]} 50. d5 {[%emt 0:00:30]} Kg6 {[%emt 0:00:30]} 51. Nf3 {[%emt 0:00:00] Hoping for d6.} a5 {[%emt 0:00:00]} 52. Bc5 {[%emt 0:00:00] Nd4 would kill now.} axb4 {[%emt 0:00:00]} 53. axb4 {[%emt 0:00:00] White mates.} Kh5 {[%emt 0:00:00]} 54. h3 {[%emt 0:00:00]} Ra3 {[%emt 0:00:00]} 55. Kf2 {[%emt 0:00:00]} Ra2+ {[%emt 0:00:00]} 56. Ke3 {[%emt 0:00:00]} Kg6 {[%emt 0:00:00]} 57. Kf4 {[%emt 0:00:00]} Rc2 {[%emt 0:00:00]} 58. Nh4+ {[%emt 0:00:00]} Kf7 {[%emt 0:00:00]} 59. Nxf5 {[%emt 0:00:00]} Kg6 {[%emt 0:00:00]} 60. Ne3 {[%emt 0:00:00]} Rf2+ {[%emt 0:00:00]} 61. Ke4 {[%emt 0:00:00]} Re2 {[%emt 0:00:00]} 62. h4 {[%emt 0:00:00][%cal Bh3h4,Bh4h5][%mdl 32]} Re1 {[%emt 0:00:00]} 63. g4 {[%emt 0:00:00]} Rh1 {[%emt 0:00:00]} 64. h5+ {[%emt 0:00:00]} Kf7 {[%emt 0:00:00]} 65. Kf5 {[%emt 0:00:00]} Rh2 {[%emt 0:00:00]} 66. e6+ {[%emt 0:00:00]} Ke8 {[%emt 0:00:00]} 67. d6 {[%emt 0:00:00][%cal Bd5d6,Bd6d7][%mdl 32]} Rd2 {[%emt 0:00:00]} 68. h6 {[%emt 0:00:00]} Rh2 {[%emt 0:00:00]} 69. g5 {[%emt 0:00:00]} Kd8 {[%emt 0:00:00]} 70. Bb6+ {[%emt 0:00:00]} Kc8 {[%emt 0:00:00]} 71. d7+ {[%emt 0:00:00]} Kb7 {[%emt 0:00:00]} 72. e7 {[%emt 0:00:00]} Rf2+ {[%emt 0:00:00]} 73. Ke4 {[%emt 0:00:00] Weighted Error Value: White=1.15/Black=1.00} 1-0

[Event "FIDE Zonal 4-2 Open 2023"]
[Site "Dimbroko"]
[Date "2023.03.30"]
[Round "7.4"]
[White "Bobby Ballah"]
[Black "Nean, Franck Anderson"]
[Result "1-0"]
[ECO "B08"]
[WhiteElo "1914"]
[BlackElo "1851"]
[Annotator "TA"]
[PlyCount "77"]
[EventDate "2023.03.25"]
[EventType "swiss"]
[EventCountry "IVO"]
[SourceTitle "playchess.com"]
[Source "ChessBase"]
[SourceQuality "1"]
[TimeControl "40/5400+30:1800+30"]

{[%evp 22,77,43,36,30,35,34,38,46,38,43,52,50,54,103,96,87,97,153,162,158,166,188,64,196,185,302,282,488,507,607,598,654,608,887,882,1047,1036,1135,1130,1666,1680,1711,1662,1450,1460,3002,2942,5920,5335,12095,12168,29978,29979,29985,29986,29985,1516]} 1. e4 {[%emt 0:00:12]} c6 {[%emt 0:00:11]} 2. Nc3 {[%emt 0:00:54]} d5 {[%emt 0:00:36]} 3. Nf3 {[%emt 0:02:04]} g6 {[%emt 0:03:44]} 4. d4 {[%emt 0:01:24]} Bg7 {[%emt 0:02:33]} 5. Bd3 {[%emt 0:04:21]} dxe4 {[%emt 0:01:24]} 6. Nxe4 {[%emt 0:00:09]} Bg4 {[%emt 0:00:51]} 7. c3 {[%emt 0:01:46]} Nd7 {[%emt 0:00:40]} 8. h3 {[%emt 0:02:21]} Bxf3 {[%emt 0:01:00]} 9. Qxf3 {[%emt 0:00:07]} Ngf6 {[%emt 0:00:36]} 10. Nxf6+ {[%emt 0:01:53]} Nxf6 {[%emt 0:00:13]} 11. O-O {[%emt 0:00:25]} O-O 12. Re1 Re8 {[%emt 0:01:57] B08: Pirc Defence: Classical System.} 13. Bc4 {[%emt 0:02:37][%cal Bd3c4,Bc4b3,Bb3c2][%mdl 32] [#]} b5 $146 {[%emt 0:02:13]} ({Predecessor:} 13... Qd7 14. Bg5 Qf5 15. Qxf5 gxf5 16. Re3 e6 17. g4 fxg4 18. hxg4 h6 19. Bh4 Nd5 20. Rf3 {1-0 Aloma Vidal,R (2433)-Benet Catala,A (2160) Andorra op 36th 2018 (2)}) 14. Bb3 {[%emt 0:00:37]} ({And not} 14. Bxf7+ Kxf7 15. Qxc6 Qd7 16. Qxd7 Nxd7 $17) 14... Nd5 {[%emt 0:02:42] White is slightly better.} 15. a4 {[%emt 0:04:41] Strongly threatening axb5.} a6 {[%emt 0:03:44]} 16. Bg5 {[%emt 0:02:16]} h6 {[%emt 0:07:18]} 17. Bh4 {[%emt 0:01:02]} g5 {[%emt 0:00:31]} (17... Bf6 $14 18. Bg3 Qd7) 18. Bg3 $16 {[%emt 0:00:06]} e6 {[%emt 0:01:01]} 19. Bc2 $36 {[%emt 0:01:31][%mdl 2048] White is on the roll.} Qd7 {[%emt 0:01:15] [#]} (19... b4 $142) 20. h4 $1 {[%emt 0:03:54]} f5 {[%emt 0:11:07]} 21. hxg5 {[%emt 0:05:17]} hxg5 {[%emt 0:01:25]} 22. Be5 {[%emt 0:05:59]} (22. Qh5 $18) 22... Qf7 {[%emt 0:03:48] [#] This costs Black the game.} (22... g4 $1 $14 23. Qg3 Rad8) 23. g4 $1 $18 {[%emt 0:08:32][%cal Bg2g4,Bg4f5,Bf5e6][%mdl 32]} Bxe5 {[%emt 0:11:45]} (23... b4 $142 24. Bxg7 (24. gxf5 bxc3 25. bxc3 exf5 $16) 24... Qxg7 25. gxf5 bxc3) 24. Rxe5 {[%emt 0:00:24]} Nf4 $2 {[%emt 0:13:45]} (24... fxg4 25. Rxg5+ Kf8 26. Qxg4 Qf4) 25. gxf5 {[%emt 0:02:28]} Qh7 {[%emt 0:04:57]} 26. fxe6 {[%emt 0:03:20]} Qh4 {[%emt 0:05:40]} 27. Qg3 {[%emt 0:02:33]} Nh3+ {[%emt 0:02:16]} 28. Kh2 {[%emt 0:03:21]} Qxg3+ {[%emt 0:06:52]} 29. Kxg3 {[%emt 0:00:24]} g4 {[%emt 0:00:15]} 30. f3 {[%emt 0:00:13]} Rf8 {[%emt 0:04:43]} 31. Kxg4 {[%emt 0:00:33]} Kg7 {[%emt 0:02:14]} 32. Kxh3 {[%emt 0:00:22][%cal Bg4h3,Bh3g3,Bg3f4,Bf4e3][%mdl 32] White wants to mate with Rg1+.} Rh8+ {[%emt 0:00:37]} 33. Kg3 {[%emt 0:00:32]} Kf6 {[%emt 0:00:10]} 34. e7 {[%emt 0:02:50]} Rag8+ {[%emt 0:00:20]} 35. Kf4 {[%emt 0:00:14]} Rh4+ {[%emt 0:00:40]} 36. Ke3 {[%emt 0:00:07] Threatening mate with axb5.} Re8 {[%emt 0:00:11]} 37. axb5 {[%emt 0:00:37] White mates.} Rh2 {[%emt 0:01:23]} 38. Be4 {[%emt 0:00:45]} axb5 {[%emt 0:00:29]} 39. Bxc6 {[%emt 0:00:14] Weighted Error Value: White=0.14 (very precise) /Black=0.57} (39. Ra6 $142 Rh1 40. Rxc6+ Kg7 41. Rg5+ Kf7 42. Bg6+ Kxe7 43. Re5+ Kd7 44. Bxe8+ Kd8 45. Rd6+ Kc7 46. Rd7+ Kc8 47. Rg7) 1-0

[Event "FIDE Zonal 4-2 Open 2023"]
[Site "Dimbroko"]
[Date "2023.03.30"]
[Round "7.5"]
[White "Ble, Kouko Hubert"]
[Black "Manan, Yoboue Hermann"]
[Result "0-1"]
[ECO "E05"]
[WhiteElo "1825"]
[BlackElo "2015"]
[Annotator "TA"]
[PlyCount "58"]
[EventDate "2023.03.25"]
[EventType "swiss"]
[EventCountry "IVO"]
[SourceTitle "playchess.com"]
[Source "ChessBase"]
[SourceQuality "1"]
[TimeControl "40/5400+30:1800+30"]

{[%evp 19,58,52,58,66,76,54,51,44,46,30,43,6,29,0,0,-115,-30,-118,-119,-123,-54,-112,-108,-141,-114,-435,-441,-433,-413,-696,-691,-694,-678,-700,-687,-681,-662,-733,-712,-806,-793]} 1. Nf3 {[%emt 0:00:02]} Nf6 {[%emt 0:00:20]} 2. c4 {[%emt 0:00:17]} e6 {[%emt 0:00:15]} 3. g3 {[%emt 0:01:01]} Be7 {[%emt 0:00:45]} 4. Bg2 {[%emt 0:00:12]} d5 {[%emt 0:00:26]} 5. O-O {[%emt 0:01:43]} O-O {[%emt 0:00:30]} 6. d4 {[%emt 0:04:15]} dxc4 7. Nc3 c5 {[%emt 0:04:47]} 8. dxc5 {[%emt 0:02:51]} Qa5 {[%emt 0:03:35]} 9. Qd4 {[%emt 0:01:46]} Qxc5 {[%emt 0:09:42]} 10. Qxc5 {[%emt 0:05:12]} Bxc5 {[%emt 0:00:10]} 11. Nd2 {[%emt 0:01:23] E05: Open Catalan: 5 Nf3 Be7.} Nc6 {[%emt 0:01:57]} 12. Nxc4 {[%emt 0:00:53]} Rd8 {[%emt 0:06:20]} 13. Bg5 {[%emt 0:05:43] White is slightly better.} Bd7 {[%emt 0:01:17] [#]} 14. Rac1 $146 {[%emt 0:03:27]} ({Predecessor:} 14. Rad1 Be7 15. Bf4 Be8 16. Bd6 Bxd6 17. Nxd6 Rab8 18. b3 Kf8 19. Nxe8 Kxe8 20. Nb5 Rxd1 21. Rxd1 {1-0 Chan,K (2019)-Taylor,R (1888) NZL-ch op 123rd 2016 (5)}) 14... Be8 {[%emt 0:02:19]} 15. a3 {[%emt 0:00:44]} Be7 {[%emt 0:13:00]} (15... h6 $5 {[%cal Rh6g5]} 16. Bf4 g5 $11) 16. b4 {[%emt 0:07:17]} Rac8 {[%emt 0:02:04][%cal Oc6b4]} 17. Nb2 {[%emt 0:04:01] [#]} (17. Bxc6 $11 {keeps the balance.} Bxc6 18. Na5) 17... a5 {[%emt 0:03:25]} (17... Nd4 $1 $17 {[%cal Oc8c3] ...Rxc3! is the strong threat.} 18. Rfe1 Nb3) 18. Nd3 {[%emt 0:03:49] [#]} (18. Be3 $11) 18... Nd4 $1 $17 {[%emt 0:04:07]} 19. Rfe1 {[%emt 0:03:19]} Bc6 {[%emt 0:04:02]} (19... Nb3 $17 20. Rc2 Rd7) 20. Bxc6 {[%emt 0:03:24]} ({White should try} 20. Be3 $15) 20... Rxc6 {[%emt 0:01:51]} 21. b5 {[%emt 0:03:39]} Rcc8 {[%emt 0:02:30] Black has more active pieces.} 22. a4 {[%emt 0:00:22][%mdl 8192] This move loses the game for White.} (22. Ne4 $17) 22... Ba3 $19 {[%emt 0:00:30]} 23. Ne4 {[%emt 0:06:21]} Nxe4 {[%emt 0:08:25]} 24. Rxc8 {[%emt 0:02:13]} (24. Bxd8 $142 Bxc1 25. Bxa5) 24... Rxc8 {[%emt 0:00:34] Black is clearly winning.} 25. Be3 {[%emt 0:00:33]} Nc2 {[%emt 0:00:18]} 26. Rf1 {[%emt 0:00:40]} Nxe3 {[%emt 0:02:38]} 27. fxe3 {[%emt 0:02:59]} f5 {[%emt 0:00:03]} 28. Nf4 {[%emt 0:01:09]} Kf7 {[%emt 0:00:11]} 29. Rd1 {[%emt 0:00:06]} Rc1 {[%emt 0:00:13] Weighted Error Value: White=0.78/Black=0.15 (very precise)} 0-1

[Event "FIDE Zonal 4-2 Open 2023"]
[Site "Dimbroko"]
[Date "2023.03.30"]
[Round "7.6"]
[White "Amako Marc Arnold"]
[Black "Barcon, Harmon"]
[Result "1/2-1/2"]
[ECO "C41"]
[WhiteElo "1647"]
[BlackElo "1928"]
[Annotator "TA"]
[PlyCount "93"]
[EventDate "2023.03.25"]
[EventType "swiss"]
[EventCountry "IVO"]
[SourceTitle "playchess.com"]
[Source "ChessBase"]
[SourceQuality "1"]
[TimeControl "40/5400+30:1800+30"]

{[%evp 10,93,35,29,36,35,59,15,26,5,33,28,33,43,41,43,63,43,74,74,62,47,54,36,46,-8,69,58,89,56,52,52,64,53,83,29,29,29,29,29,29,32,18,0,1,-13,0,0,0,0,0,0,41,41,41,41,62,0,0,0,0,0,52,52,52,-422,-370,-584,-561,-449,0,-283,-245,-329,0,0,0,0,0,0,0,0,0,0,0,0]} 1. e4 {[%emt 0:00:04]} e5 {[%emt 0:00:47]} 2. Nf3 {[%emt 0:00:19]} d6 {[%emt 0:00:07]} 3. d4 {[%emt 0:00:10]} exd4 {[%emt 0:00:07]} 4. Nxd4 {[%emt 0:00:08]} Nf6 {[%emt 0:00:08]} 5. Nc3 {[%emt 0:00:07]} Be7 {[%emt 0:00:03]} 6. Bf4 {[%emt 0:00:12]} a6 {[%emt 0:00:10] C41: Philidor Defence.} 7. Qd2 {[%emt 0:00:21]} b5 {[%emt 0:03:11]} 8. a3 {[%emt 0:02:20] [#]} c5 $146 {[%emt 0:02:23]} ({Predecessor:} 8... O-O 9. O-O-O Bb7 10. f3 Nh5 11. Be3 Nc6 12. g4 Nxd4 13. Qxd4 Nf6 14. Qd2 Nd7 {0-1 Jallah,J-Harmon,B (1794) Monrovia zt 4.4 2017 (7)}) 9. Nde2 {[%emt 0:06:35]} Ra7 {[%emt 0:01:02]} 10. g3 {[%emt 0:02:11]} Be6 {[%emt 0:02:16]} 11. Bg2 {[%emt 0:00:29]} O-O {[%emt 0:00:23]} 12. O-O {[%emt 0:00:14]} Qb6 {[%emt 0:00:41]} 13. Rad1 {[%emt 0:02:03][%cal Rf4d6]} Rd8 {[%emt 0:00:31]} 14. h3 {[%emt 0:01:25]} Nc6 {[%emt 0:00:51]} 15. Be3 {[%emt 0:00:29]} Ne5 {[%emt 0:01:54][%cal Od6d5]} 16. Qc1 {[%emt 0:00:54]} a5 {[%emt 0:00:20]} 17. b3 {[%emt 0:00:22]} (17. a4 $14) 17... Bc8 {[%emt 0:02:07]} (17... b4 $11 18. Na4 Qb5) 18. Nf4 {[%emt 0:00:23] Threatens to win with Nfd5.} Be6 {[%emt 0:06:42]} 19. Nfd5 {[%emt 0:01:29]} Bxd5 {[%emt 0:00:29]} 20. Nxd5 {[%emt 0:00:10]} Nxd5 {[%emt 0:00:17]} 21. Rxd5 {[%emt 0:00:08]} b4 {[%emt 0:04:03]} 22. f4 {[%emt 0:01:37]} (22. a4 $16) 22... Nc6 $11 {[%emt 0:00:18]} 23. a4 {[%emt 0:00:38]} Bf6 {[%emt 0:00:08] [#]} 24. e5 $1 {[%emt 0:00:45]} Be7 {[%emt 0:00:36]} 25. Rfd1 {[%emt 0:00:15][%cal Re5d6]} dxe5 {[%emt 0:01:09]} 26. fxe5 {[%emt 0:05:44]} Nd4 {[%emt 0:01:19]} 27. Qd2 {[%emt 0:01:02][%cal Re3d4] Dodges Ne2+} Rxd5 {[%emt 0:00:06]} 28. Bxd5 {[%emt 0:00:33]} Rd7 {[%emt 0:00:07]} 29. Qg2 {[%emt 0:00:55]} Qd8 {[%emt 0:00:53]} 30. Bc4 {[%emt 0:03:15] This pair of bishops is nice.} Nf3+ {[%emt 0:16:16][%mdl 64] Discovered Attack} 31. Qxf3 {[%emt 0:00:09]} Rxd1+ {[%emt 0:00:05]} 32. Kg2 {[%emt 0:00:17]} Kh8 {[%emt 0:03:21]} 33. Bd3 {[%emt 0:01:21]} ({White should play} 33. Qxf7 $14 Qa8+ 34. Kf2) 33... Rxd3 {[%emt 0:02:52]} 34. cxd3 {[%emt 0:00:26][%mdl 4096] Endgame KQB-KQB} Kg8 {[%emt 0:02:08]} 35. Qe4 {[%emt 0:04:01]} Qb6 {[%emt 0:00:09]} (35... Qc8 $11) 36. Qa8+ $14 {[%emt 0:00:46]} Bf8 {[%emt 0:01:32]} 37. Bg5 $2 {[%emt 0:02:03][%mdl 8192]} (37. Kf2 $14 {keeps the upper hand.}) 37... Qe6 $1 $19 {[%emt 0:01:16][%csl LRb3,LRe5]} 38. Qb8 {[%emt 0:03:10]} (38. g4 {was called for.}) 38... h6 {[%emt 0:01:49]} (38... Qxb3 39. Be7 Qc2+ 40. Kh1 Qd1+ 41. Kh2 Qe2+ 42. Kg1 Qe1+ 43. Kg2 Qe2+ 44. Kg1 Qe1+ 45. Kg2 Qe2+ 46. Kg1 $11) 39. Bd8 {[%emt 0:00:48]} g5 $2 {[%emt 0:01:45]} (39... Qxb3 $19 40. Be7 Kh7 41. Qxf8 Qd5+ 42. Kh2 b3) 40. Bc7 $2 {[%emt 0:01:08][%mdl 8192] [#] Active counter play!} (40. Bf6 $11 {and White is okay.}) 40... Kg7 $1 {[%emt 0:00:54]} ({And not} 40... Qxb3 41. Bd6 $11) 41. Bd6 {[%emt 0:30:15]} Be7 {[%emt 0:31:02]} (41... Bxd6 $19 42. Qxd6 Qxb3) 42. Qc7 $11 {[%emt 0:00:38][%csl LRa5,LRc5,LRe7] The position is equal.} Qd5+ {[%emt 0:00:39]} 43. Kh2 {[%emt 0:00:21]} Bf8 {[%emt 0:01:48]} 44. Qd8 {[%emt 0:01:50]} Bxd6 {[%emt 0:00:02]} (44... Qxd3 {gets mated.} 45. Bxf8+ Kg8 46. Qxd3 Kxf8 47. Qd8+ Kg7 48. Qxa5 c4 49. Qxb4 cxb3 50. a5) 45. Qf6+ {[%emt 0:00:19]} Kf8 {[%emt 0:01:43]} 46. exd6 {[%emt 0:00:25][%cal Rf6h8]} Qd4 {[%emt 0:00:14]} 47. Qe7+ {[%emt 1:00:46] White happily takes the draw.   Weighted Error Value: White=0.51/Black=0.31} 1/2-1/2

[Event "FIDE Zonal 4-2 Open 2023"]
[Site "Dimbroko"]
[Date "2023.03.30"]
[Round "7.7"]
[White "Kennedy Zinnah Kengo"]
[Black "Harold Evans"]
[Result "1/2-1/2"]
[ECO "B01"]
[WhiteElo "1785"]
[BlackElo "1714"]
[Annotator "NA RC COMBH"]
[PlyCount "127"]
[EventDate "2023.03.25"]
[EventType "swiss"]
[EventCountry "IVO"]
[SourceTitle "playchess.com"]
[Source "ChessBase"]
[SourceQuality "1"]
[TimeControl "40/5400+30:1800+30"]

1. e4 {[%emt 0:00:09]} d5 {[%emt 0:00:16]} 2. exd5 {[%emt 0:00:16]} Qxd5 {[%emt 0:00:14]} 3. Nc3 {[%emt 0:00:23]} Qd6 {[%emt 0:00:30]} 4. d4 {[%emt 0:00:25]} Nf6 {[%emt 0:00:24]} 5. Nf3 {[%emt 0:00:35]} Bg4 {[%emt 0:00:17]} 6. h3 {[%emt 0:00:19]} Bh5 {[%emt 0:00:18]} 7. Bb5+ {[%emt 0:00:53]} c6 {[%emt 0:00:26]} 8. Ba4 {[%emt 0:00:50]} Nbd7 {[%emt 0:00:36]} 9. Be3 e6 10. a3 {[%emt 0:01:58]} Be7 {[%emt 0:00:54]} 11. Bb3 {[%emt 0:00:51]} Nb6 {[%emt 0:00:51]} 12. O-O Bd8 {[%emt 0:01:22]} 13. Re1 Bc7 14. d5 Nfxd5 {[%emt 0:07:31]} 15. Bxd5 {[%emt 0:05:11]} Nxd5 {[%emt 0:01:11]} 16. Ne4 {[%emt 0:00:36]} Qe7 {[%emt 0:00:55]} 17. Bc5 {[%emt 0:00:18]} Qd7 {[%emt 0:00:45]} 18. c4 {[%emt 0:00:13]} Nb6 {[%emt 0:03:12]} 19. Qc2 {[%emt 0:00:32]} Bxf3 {[%emt 0:00:58]} 20. gxf3 {[%emt 0:00:08]} O-O-O {[%emt 0:03:01]} 21. Rad1 {[%emt 0:00:18]} Qe8 {[%emt 0:00:18]} 22. Bd6 {[%emt 0:00:38]} f5 {[%emt 0:01:54]} 23. Bxc7 {[%emt 0:00:17]} Kxc7 {[%emt 0:00:26]} 24. Nc5 {[%emt 0:00:48]} Qg6+ {[%emt 0:03:02]} 25. Kh2 {[%emt 0:00:14]} Rhe8 {[%emt 0:02:35]} 26. Rxd8 {[%emt 0:01:38]} Kxd8 {[%emt 0:02:54]} 27. Nxb7+ {[%emt 0:00:50]} Kc7 {[%emt 0:00:41]} 28. Nc5 {[%emt 0:00:12]} Qh6 {[%emt 0:00:49]} 29. Qc3 {[%emt 0:02:43]} Qf4+ {[%emt 0:02:54]} 30. Kg2 {[%emt 0:00:19]} e5 {[%emt 0:02:06]} 31. Qa5 {[%emt 0:00:49]} Kb8 {[%emt 0:10:39]} 32. Rd1 {[%emt 0:00:52]} e4 {[%emt 0:04:15]} 33. fxe4 {[%emt 0:01:29]} fxe4 {[%emt 0:00:58]} 34. Nd7+ {[%emt 0:00:16]} Kb7 {[%emt 0:03:05]} 35. Nc5+ {[%emt 0:01:39]} Ka8 {[%emt 0:02:28]} 36. Rd2 {[%emt 0:02:14]} Qg5+ {[%emt 0:03:40]} 37. Kh1 {[%emt 0:02:10]} e3 {[%emt 0:03:51]} 38. Re2 {[%emt 0:10:35]} Qh5 {[%emt 0:01:53]} 39. Rxe3 {[%emt 0:02:03]} Rxe3 {[%emt 0:00:22]} 40. fxe3 {[%emt 0:00:14]} Qxh3+ {[%emt 0:00:14]} 41. Kg1 {[%emt 0:30:50]} Qxe3+ {[%emt 0:30:11]} 42. Kg2 Qg5+ 43. Kf2 {[%emt 0:01:30]} Nxc4 {[%emt 0:01:43]} 44. Qb4 {[%emt 0:01:02]} Qd2+ {[%emt 0:00:23]} 45. Qxd2 {[%emt 0:00:32]} Nxd2 {[%emt 0:00:24]} 46. b3 {[%emt 0:00:23]} Nb1 {[%emt 0:00:31]} 47. a4 {[%emt 0:00:10]} Nc3 {[%emt 0:02:35]} 48. Ne6 {[%emt 0:00:20]} g6 {[%emt 0:00:42]} 49. Nf8 {[%emt 0:00:01]} Ne4+ {[%emt 0:00:30]} 50. Ke3 {[%emt 0:00:29]} Nf6 {[%emt 0:00:24]} 51. Kf4 {[%emt 0:00:12]} Kb7 {[%emt 0:00:39]} 52. Ke5 {[%emt 0:00:00]} Nd5 {[%emt 0:04:56]} 53. Nxh7 {[%emt 0:00:00]} Kb6 {[%emt 0:00:37]} 54. Kd4 {[%emt 0:00:00]} a5 {[%emt 0:01:18]} 55. Ng5 {[%emt 0:00:53]} Nc7 {[%emt 0:02:40]} 56. Kc4 {[%emt 0:00:29]} Na6 {[%emt 0:00:20]} 57. Ne6 {[%emt 0:00:17]} c5 {[%emt 0:04:07]} 58. Ng5 {[%emt 0:04:15]} Kc6 {[%emt 0:00:24]} 59. Ne4 {[%emt 0:00:22]} Kb6 {[%emt 0:01:12]} 60. Kd5 {[%emt 0:00:44]} Kc7 {[%emt 0:03:04]} 61. Nd2 {[%emt 0:01:31]} g5 {[%emt 0:02:21]} 62. Nc4 {[%emt 0:00:14]} Nb4+ {[%emt 0:03:10]} 63. Kxc5 {[%emt 0:01:30]} g4 {[%emt 0:00:27]} 64. Kd4 {[%emt 0:00:31]} 1/2-1/2